[Event "Live Chess"]
[Site "Chess.com"]
[Date "2023.05.21"]
[Round "-"]
[White "risinghelios"]
[Black "JanMur7"]
[Result "0-1"]
[WhiteElo "1895"]
[BlackElo "1984"]
[TimeControl "300"]
[EndTime "4:20:42 PDT"]
[Termination "JanMur7 won by checkmate"]

1. e4 {[%clk 0:04:58.6]} 1... e5 {[%clk 0:04:58.6]} 2. Nf3 {[%clk 0:04:57]} 2...
Nc6 {[%clk 0:04:57.4]} 3. Bb5 {[%clk 0:04:56.4]} 3... Nf6 {[%clk 0:04:56.3]} 4.
d3 {[%clk 0:04:53.9]} 4... Ne7 {[%clk 0:04:52.1]} 5. c3 {[%clk 0:04:52.5]} 5...
c6 {[%clk 0:04:50]} 6. Ba4 {[%clk 0:04:51.4]} 6... Ng6 {[%clk 0:04:48.7]} 7. O-O
{[%clk 0:04:50]} 7... Be7 {[%clk 0:04:46.9]} 8. Bc2 {[%clk 0:04:48.7]} 8... O-O
{[%clk 0:04:45.9]} 9. Nbd2 {[%clk 0:04:44.1]} 9... d6 {[%clk 0:04:42.5]} 10. Re1
{[%clk 0:04:42.3]} 10... Bg4 {[%clk 0:04:26]} 11. Nf1 {[%clk 0:04:39.2]} 11...
Nh4 {[%clk 0:04:22.8]} 12. N1d2 {[%clk 0:04:30.6]} 12... Qd7 {[%clk 0:04:06.8]}
13. h3 {[%clk 0:04:28.8]} 13... Nxf3+ {[%clk 0:04:01.5]} 14. Nxf3 {[%clk
0:04:25.1]} 14... Bh5 {[%clk 0:04:00.2]} 15. Be3 {[%clk 0:04:22.5]} 15... h6
{[%clk 0:03:50.1]} 16. d4 {[%clk 0:04:12.1]} 16... Qc7 {[%clk 0:03:32.5]} 17. g4
{[%clk 0:03:51.4]} 17... Bg6 {[%clk 0:03:21]} 18. Bc1 {[%clk 0:03:30.8]} 18...
Rad8 {[%clk 0:02:47.7]} 19. Nh4 {[%clk 0:03:23.3]} 19... Bh7 {[%clk 0:02:42.6]}
20. f3 {[%clk 0:03:20.8]} 20... Nxe4 {[%clk 0:02:31.2]} 21. Bxe4 {[%clk
0:03:06.8]} 21... Bxh4 {[%clk 0:02:27.3]} 22. Bxh7+ {[%clk 0:02:59]} 22... Kxh7
{[%clk 0:02:25.5]} 23. Qd3+ {[%clk 0:02:56.9]} 23... f5 {[%clk 0:02:14.9]} 24.
Rf1 {[%clk 0:02:51.2]} 24... Qf7 {[%clk 0:02:12.5]} 25. Bd2 {[%clk 0:02:42.8]}
25... Qg6 {[%clk 0:01:41.4]} 26. Kh2 {[%clk 0:02:39.1]} 26... fxg4 {[%clk
0:01:37.7]} 27. Qxg6+ {[%clk 0:02:35.5]} 27... Kxg6 {[%clk 0:01:37.6]} 28. fxg4
{[%clk 0:02:34.2]} 28... exd4 {[%clk 0:01:31.7]} 29. cxd4 {[%clk 0:02:26.4]}
29... Rxf1 {[%clk 0:01:30.2]} 30. Rxf1 {[%clk 0:02:24.2]} 30... Re8 {[%clk
0:01:29.4]} 31. Bc3 {[%clk 0:02:15]} 31... d5 {[%clk 0:01:19.6]} 32. Kg2 {[%clk
0:02:10.3]} 32... Re2+ {[%clk 0:01:14.5]} 33. Kf3 {[%clk 0:02:07.9]} 33... Re8
{[%clk 0:01:11.3]} 34. Kg2 {[%clk 0:01:54.9]} 34... Bf6 {[%clk 0:01:09]} 35. Kf2
{[%clk 0:01:42.8]} 35... Re4 {[%clk 0:01:02]} 36. Kf3 {[%clk 0:01:39.8]} 36...
Bxd4 {[%clk 0:00:57.7]} 37. h4 {[%clk 0:01:38.9]} 37... Bxc3 {[%clk 0:00:53.8]}
38. h5+ {[%clk 0:01:37.9]} 38... Kh7 {[%clk 0:00:48.9]} 39. bxc3 {[%clk
0:01:36.3]} 39... Rc4 {[%clk 0:00:47.3]} 40. Re1 {[%clk 0:01:30.8]} 40... Rxc3+
{[%clk 0:00:45.1]} 41. Kf4 {[%clk 0:01:29.6]} 41... Rc4+ {[%clk 0:00:41.5]} 42.
Kf5 {[%clk 0:01:26.7]} 42... Re4 {[%clk 0:00:41.4]} 43. Rxe4 {[%clk 0:01:22.8]}
43... dxe4 {[%clk 0:00:40.2]} 44. Kxe4 {[%clk 0:01:22.7]} 44... g6 {[%clk
0:00:39.4]} 45. Ke5 {[%clk 0:01:20.5]} 45... gxh5 {[%clk 0:00:37.8]} 46. gxh5
{[%clk 0:01:20.4]} 46... Kg7 {[%clk 0:00:36.5]} 47. Kd6 {[%clk 0:01:19.3]} 47...
Kf6 {[%clk 0:00:35.2]} 48. Kc7 {[%clk 0:01:18.8]} 48... c5 {[%clk 0:00:34]} 49.
Kxb7 {[%clk 0:01:18.2]} 49... c4 {[%clk 0:00:33.9]} 50. Kxa7 {[%clk 0:01:18.1]}
50... c3 {[%clk 0:00:33.3]} 51. a4 {[%clk 0:01:18]} 51... c2 {[%clk 0:00:33.2]}
52. a5 {[%clk 0:01:17.9]} 52... c1=Q {[%clk 0:00:32.8]} 53. a6 {[%clk
0:01:17.8]} 53... Qc7+ {[%clk 0:00:30.9]} 54. Ka8 {[%clk 0:01:16.9]} 54... Qa5
{[%clk 0:00:29]} 55. a7 {[%clk 0:01:16.2]} 55... Kg5 {[%clk 0:00:28.4]} 56. Kb7
{[%clk 0:01:15.5]} 56... Qxa7+ {[%clk 0:00:27.8]} 57. Kxa7 {[%clk 0:01:14.9]}
57... Kxh5 {[%clk 0:00:27.7]} 58. Kb6 {[%clk 0:01:14.8]} 58... Kg4 {[%clk
0:00:27]} 59. Kc5 {[%clk 0:01:14.7]} 59... h5 {[%clk 0:00:26.2]} 60. Kd4 {[%clk
0:01:14.6]} 60... h4 {[%clk 0:00:25]} 61. Ke3 {[%clk 0:01:14.5]} 61... Kg3
{[%clk 0:00:24.6]} 62. Ke2 {[%clk 0:01:13.5]} 62... Kg2 {[%clk 0:00:23.9]} 63.
Ke3 {[%clk 0:01:12.5]} 63... h3 {[%clk 0:00:23.8]} 64. Kf4 {[%clk 0:01:11.9]}
64... h2 {[%clk 0:00:23.7]} 65. Kg4 {[%clk 0:01:11.8]} 65... h1=Q {[%clk
0:00:23.6]} 66. Kg5 {[%clk 0:01:10.6]} 66... Qe1 {[%clk 0:00:23.3]} 67. Kg6
{[%clk 0:01:10.5]} 67... Qe5 {[%clk 0:00:22.5]} 68. Kf7 {[%clk 0:01:09.7]} 68...
Qd6 {[%clk 0:00:22]} 69. Kg7 {[%clk 0:01:09.6]} 69... Qe6 {[%clk 0:00:21.4]} 70.
Kh8 {[%clk 0:01:09.5]} 70... Qe7 {[%clk 0:00:20.4]} 71. Kg8 {[%clk 0:01:08.3]}
71... Kg3 {[%clk 0:00:20.3]} 72. Kh8 {[%clk 0:01:07.4]} 72... Kg4 {[%clk
0:00:20.2]} 73. Kg8 {[%clk 0:01:07.2]} 73... Kg5 {[%clk 0:00:20.1]} 74. Kh8
{[%clk 0:01:07.1]} 74... Kg6 {[%clk 0:00:20]} 75. Kg8 {[%clk 0:01:07]} 75...
Qg7# {[%clk 0:00:19.9]} 0-1

[Event "Live Chess"]
[Site "Chess.com"]
[Date "2023.05.21"]
[Round "-"]
[White "matt1979"]
[Black "peter-785"]
[Result "1-0"]
[WhiteElo "1546"]
[BlackElo "1187"]
[TimeControl "300"]
[EndTime "4:20:43 PDT"]
[Termination "matt1979 won by checkmate"]

1. f4 {[%clk 0:04:58.4]} 1... c5 {[%clk 0:04:59.6]} 2. Nf3 {[%clk 0:04:56.9]}
2... d6 {[%clk 0:04:58.5]} 3. e3 {[%clk 0:04:53.9]} 3... e6 {[%clk 0:04:57.7]}
4. b3 {[%clk 0:04:49.1]} 4... Nf6 {[%clk 0:04:56.4]} 5. Bb2 {[%clk 0:04:47.5]}
5... Be7 {[%clk 0:04:55.5]} 6. d3 {[%clk 0:04:44.6]} 6... O-O {[%clk 0:04:55]}
7. e4 {[%clk 0:04:43.7]} 7... Nbd7 {[%clk 0:04:52.4]} 8. Be2 {[%clk 0:04:42.6]}
8... a6 {[%clk 0:04:51.7]} 9. O-O {[%clk 0:04:40.6]} 9... b5 {[%clk 0:04:51.2]}
10. Nbd2 {[%clk 0:04:34]} 10... Bb7 {[%clk 0:04:49.8]} 11. Qe1 {[%clk
0:04:25.1]} 11... Qb6 {[%clk 0:04:48.6]} 12. Kh1 {[%clk 0:04:23.2]} 12... Rac8
{[%clk 0:04:45]} 13. Qf2 {[%clk 0:04:02.9]} 13... Ng4 {[%clk 0:04:42.6]} 14. Qg1
{[%clk 0:03:58.3]} 14... c4 {[%clk 0:04:30.2]} 15. Bd4 {[%clk 0:03:52.3]} 15...
Qc6 {[%clk 0:04:09.3]} 16. h3 {[%clk 0:03:44.8]} 16... Ngf6 {[%clk 0:04:06.7]}
17. Nh2 {[%clk 0:03:24]} 17... Nh5 {[%clk 0:04:02.8]} 18. Bxh5 {[%clk
0:03:19.6]} 18... g6 {[%clk 0:03:59.3]} 19. Bf3 {[%clk 0:03:16.8]} 19... Qc7
{[%clk 0:03:56.1]} 20. Qf2 {[%clk 0:03:13.1]} 20... Qd8 {[%clk 0:03:53]} 21. Ng4
{[%clk 0:03:04.5]} 21... Bh4 {[%clk 0:03:49]} 22. g3 {[%clk 0:02:58.4]} 22...
Be7 {[%clk 0:03:47.2]} 23. Nh6# {[%clk 0:02:51.8]} 1-0

[Event "Live Chess"]
[Site "Chess.com"]
[Date "2023.05.21"]
[Round "-"]
[White "Tilbs_12"]
[Black "SupremeTactician"]
[Result "0-1"]
[WhiteElo "1582"]
[BlackElo "2230"]
[TimeControl "300"]
[EndTime "4:20:45 PDT"]
[Termination "SupremeTactician won by checkmate"]

1. e4 {[%clk 0:04:58.8]} 1... e5 {[%clk 0:04:59.3]} 2. Nf3 {[%clk 0:04:57.7]}
2... Nc6 {[%clk 0:04:58.6]} 3. c3 {[%clk 0:04:56.8]} 3... d5 {[%clk 0:04:56.9]}
4. exd5 {[%clk 0:04:55.7]} 4... Qxd5 {[%clk 0:04:56.8]} 5. d4 {[%clk 0:04:43.2]}
5... exd4 {[%clk 0:04:56.7]} 6. Nxd4 {[%clk 0:04:37.6]} 6... Nxd4 {[%clk
0:04:55.6]} 7. Qxd4 {[%clk 0:04:36.7]} 7... Qxd4 {[%clk 0:04:55]} 8. cxd4 {[%clk
0:04:36.4]} 8... Bb4+ {[%clk 0:04:54.8]} 9. Bd2 {[%clk 0:04:34.4]} 9... Bxd2+
{[%clk 0:04:54.2]} 10. Nxd2 {[%clk 0:04:32]} 10... Be6 {[%clk 0:04:53.4]} 11.
Nf3 {[%clk 0:04:23.9]} 11... O-O-O {[%clk 0:04:51.4]} 12. O-O-O {[%clk
0:04:19.8]} 12... Bxa2 {[%clk 0:04:48.8]} 13. Kc2 {[%clk 0:04:14.3]} 13... Nf6
{[%clk 0:04:45.4]} 14. b3 {[%clk 0:04:12.5]} 14... Ne4 {[%clk 0:04:39.3]} 15.
Ra1 {[%clk 0:03:59.7]} 15... Nxf2 {[%clk 0:04:32.8]} 16. Rg1 {[%clk 0:03:58.7]}
16... Bxb3+ {[%clk 0:04:31.1]} 17. Kxb3 {[%clk 0:03:57.3]} 17... a6 {[%clk
0:04:30.1]} 18. Bc4 {[%clk 0:03:50.9]} 18... f6 {[%clk 0:04:24.6]} 19. Rgf1
{[%clk 0:03:45.4]} 19... Ng4 {[%clk 0:04:22.5]} 20. h3 {[%clk 0:03:41.9]} 20...
Ne3 {[%clk 0:04:21.6]} 21. Rg1 {[%clk 0:03:37.7]} 21... Rhe8 {[%clk 0:04:10.8]}
22. g4 {[%clk 0:03:23.9]} 22... Nxc4 {[%clk 0:03:31.8]} 23. Kxc4 {[%clk
0:03:22]} 23... b5+ {[%clk 0:03:30.8]} 24. Kb4 {[%clk 0:03:09.4]} 24... Re3
{[%clk 0:03:26.7]} 25. Rgf1 {[%clk 0:02:55.5]} 25... Kb7 {[%clk 0:03:19.4]} 26.
Rac1 {[%clk 0:02:42]} 26... Kb6 {[%clk 0:03:16.9]} 27. Rc3 {[%clk 0:02:34.4]}
27... Rde8 {[%clk 0:03:04.4]} 28. d5 {[%clk 0:02:28.1]} 28... R8e4+ {[%clk
0:02:59.5]} 29. Kb3 {[%clk 0:02:25.8]} 29... a5 {[%clk 0:02:55.5]} 30. Nh4
{[%clk 0:02:17.5]} 30... Rb4+ {[%clk 0:02:42.3]} 31. Kc2 {[%clk 0:02:11.6]}
31... Re2+ {[%clk 0:02:41.3]} 32. Kd3 {[%clk 0:02:09.7]} 32... Rbb2 {[%clk
0:02:35.9]} 33. Nf3 {[%clk 0:02:03]} 33... b4 {[%clk 0:02:19.2]} 34. Rc6+ {[%clk
0:02:01.2]} 34... Kb7 {[%clk 0:02:15.5]} 35. Rfc1 {[%clk 0:02:00.1]} 35... Rf2
{[%clk 0:02:11.6]} 36. Rxc7+ {[%clk 0:01:55.3]} 36... Kb6 {[%clk 0:02:10.9]} 37.
Ke4 {[%clk 0:01:29]} 37... Rbe2+ {[%clk 0:02:04.7]} 38. Kf4 {[%clk 0:01:27.9]}
38... g5+ {[%clk 0:02:04]} 39. Kg3 {[%clk 0:01:17.7]} 39... Rg2# {[%clk
0:02:02.2]} 0-1

[Event "Live Chess"]
[Site "Chess.com"]
[Date "2023.05.21"]
[Round "-"]
[White "defenderalist"]
[Black "CheckThis4"]
[Result "0-1"]
[WhiteElo "1651"]
[BlackElo "2506"]
[TimeControl "300"]
[EndTime "4:20:46 PDT"]
[Termination "CheckThis4 won by resignation"]

1. e4 {[%clk 0:04:57.9]} 1... d5 {[%clk 0:04:56.5]} 2. exd5 {[%clk 0:04:56.6]}
2... Nf6 {[%clk 0:04:54.6]} 3. Nc3 {[%clk 0:04:56.5]} 3... Nxd5 {[%clk
0:04:51.2]} 4. Nxd5 {[%clk 0:04:56.4]} 4... Qxd5 {[%clk 0:04:49.7]} 5. Nf3
{[%clk 0:04:55.6]} 5... Nc6 {[%clk 0:04:47.4]} 6. Be2 {[%clk 0:04:54]} 6... Bg4
{[%clk 0:04:45.3]} 7. O-O {[%clk 0:04:53.4]} 7... O-O-O {[%clk 0:04:43.9]} 8. h3
{[%clk 0:04:53]} 8... h5 {[%clk 0:04:41.1]} 9. c4 {[%clk 0:04:49.2]} 9... Qd6
{[%clk 0:04:35.3]} 10. d4 {[%clk 0:04:46.6]} 10... Bxf3 {[%clk 0:04:29.7]} 11.
Bxf3 {[%clk 0:04:45.6]} 11... Nxd4 {[%clk 0:04:29.2]} 12. Be3 {[%clk 0:04:38.9]}
12... Nxf3+ {[%clk 0:04:26.8]} 13. Qxf3 {[%clk 0:04:37.9]} 13... Qf6 {[%clk
0:04:24.5]} 14. Qg3 {[%clk 0:04:27.9]} 14... e6 {[%clk 0:04:20.2]} 15. b4 {[%clk
0:04:21.8]} 15... Bd6 {[%clk 0:04:17.4]} 16. f4 {[%clk 0:04:12.3]} 16... Bxb4
{[%clk 0:04:11.5]} 17. Rfb1 {[%clk 0:04:09.5]} 17... Bc3 {[%clk 0:04:09.2]} 18.
Qf3 {[%clk 0:04:03.3]} 18... c6 {[%clk 0:04:07.7]} 19. Bxa7 {[%clk 0:03:57.9]}
19... Bxa1 {[%clk 0:04:04.6]} 20. Rxa1 {[%clk 0:03:51.8]} 20... Qxa1+ {[%clk
0:04:02.4]} 0-1

[Event "Live Chess"]
[Site "Chess.com"]
[Date "2023.05.21"]
[Round "-"]
[White "Ferrarifan27"]
[Black "ItsNot_Jasper"]
[Result "1-0"]
[WhiteElo "2076"]
[BlackElo "1392"]
[TimeControl "300"]
[EndTime "4:21:01 PDT"]
[Termination "Ferrarifan27 won by resignation"]

1. e4 {[%clk 0:04:56.9]} 1... e5 {[%clk 0:04:57.6]} 2. Nf3 {[%clk 0:04:55]} 2...
Nc6 {[%clk 0:04:56.8]} 3. Bb5 {[%clk 0:04:51.1]} 3... Nf6 {[%clk 0:04:54.9]} 4.
O-O {[%clk 0:04:47.3]} 4... Nxe4 {[%clk 0:04:53.1]} 5. d4 {[%clk 0:04:43]} 5...
Nd6 {[%clk 0:04:47.6]} 6. Bxc6 {[%clk 0:04:39.4]} 6... dxc6 {[%clk 0:04:44.4]}
7. dxe5 {[%clk 0:04:39]} 7... Nf5 {[%clk 0:04:42.4]} 8. Qxd8+ {[%clk 0:04:38.1]}
8... Kxd8 {[%clk 0:04:41.1]} 9. Nc3 {[%clk 0:04:36.3]} 9... Ke8 {[%clk
0:04:38.8]} 10. Bf4 {[%clk 0:04:29.1]} 10... Be6 {[%clk 0:04:35.2]} 11. Rad1
{[%clk 0:04:25.2]} 11... Bc5 {[%clk 0:04:30.8]} 12. Ne4 {[%clk 0:04:18.3]} 12...
Bb6 {[%clk 0:04:27]} 13. b3 {[%clk 0:04:06.4]} 13... Rd8 {[%clk 0:04:18.5]} 14.
Bg5 {[%clk 0:04:01.1]} 14... Rd7 {[%clk 0:04:06]} 15. c4 {[%clk 0:03:53.7]}
15... Nd4 {[%clk 0:03:56.1]} 16. Nxd4 {[%clk 0:03:38.9]} 16... Bxd4 {[%clk
0:03:56]} 17. Rd2 {[%clk 0:03:31.9]} 17... Bxe5 {[%clk 0:03:53.9]} 18. Rxd7
{[%clk 0:03:23.1]} 18... Kxd7 {[%clk 0:03:53.8]} 19. Nc5+ {[%clk 0:03:21.7]}
19... Kc8 {[%clk 0:03:51.2]} 20. Nxe6 {[%clk 0:03:19.9]} 20... fxe6 {[%clk
0:03:51.1]} 21. Re1 {[%clk 0:03:18.7]} 21... Kd7 {[%clk 0:03:43.3]} 22. Rxe5
{[%clk 0:03:16.1]} 1-0

[Event "Live Chess"]
[Site "Chess.com"]
[Date "2023.05.21"]
[Round "-"]
[White "Vitalii18a"]
[Black "KeithArkell"]
[Result "0-1"]
[WhiteElo "1144"]
[BlackElo "2503"]
[TimeControl "300"]
[EndTime "4:21:17 PDT"]
[Termination "KeithArkell won by checkmate"]

1. e4 {[%clk 0:04:55.9]} 1... c6 {[%clk 0:04:57.6]} 2. Nf3 {[%clk 0:04:50.7]}
2... d5 {[%clk 0:04:56.8]} 3. e5 {[%clk 0:04:49.3]} 3... Bg4 {[%clk 0:04:55.4]}
4. Be2 {[%clk 0:04:42]} 4... e6 {[%clk 0:04:54.2]} 5. h3 {[%clk 0:04:40.4]} 5...
Bxf3 {[%clk 0:04:52.9]} 6. Bxf3 {[%clk 0:04:39.2]} 6... c5 {[%clk 0:04:52.4]} 7.
d4 {[%clk 0:04:37.5]} 7... cxd4 {[%clk 0:04:50.7]} 8. Qxd4 {[%clk 0:04:36]} 8...
Nc6 {[%clk 0:04:50]} 9. Qd1 {[%clk 0:04:34.1]} 9... Nxe5 {[%clk 0:04:48.6]} 10.
Nc3 {[%clk 0:04:31.5]} 10... Nf6 {[%clk 0:04:46.1]} 11. Bf4 {[%clk 0:04:26.9]}
11... Nxf3+ {[%clk 0:04:44.6]} 12. Qxf3 {[%clk 0:04:25.1]} 12... Bd6 {[%clk
0:04:43.6]} 13. Bxd6 {[%clk 0:04:22.8]} 13... Qxd6 {[%clk 0:04:42.5]} 14. O-O
{[%clk 0:04:22.7]} 14... O-O {[%clk 0:04:41.1]} 15. Nb5 {[%clk 0:04:20]} 15...
Qb4 {[%clk 0:04:40.1]} 16. Nc7 {[%clk 0:04:14.7]} 16... Rac8 {[%clk 0:04:37.9]}
17. Nxe6 {[%clk 0:03:51.8]} 17... fxe6 {[%clk 0:04:35.8]} 18. Qe3 {[%clk
0:03:46.4]} 18... Ne4 {[%clk 0:04:30.5]} 19. f3 {[%clk 0:03:43.2]} 19... Qc5
{[%clk 0:04:29]} 20. Qxc5 {[%clk 0:03:31.6]} 20... Nxc5 {[%clk 0:04:28.9]} 21.
c3 {[%clk 0:03:29.2]} 21... Na4 {[%clk 0:04:27.6]} 22. Rfe1 {[%clk 0:03:14.4]}
22... Rc6 {[%clk 0:04:26.4]} 23. Rab1 {[%clk 0:03:11.2]} 23... Kf7 {[%clk
0:04:23.6]} 24. Kf2 {[%clk 0:03:08.7]} 24... b5 {[%clk 0:04:21.3]} 25. Kg3
{[%clk 0:03:06.6]} 25... g5 {[%clk 0:04:19.2]} 26. Kg4 {[%clk 0:03:05.3]} 26...
Kf6 {[%clk 0:04:18.5]} 27. h4 {[%clk 0:02:52.2]} 27... h5+ {[%clk 0:04:17.2]}
28. Kxh5 {[%clk 0:02:49.7]} 28... Rh8+ {[%clk 0:04:16.2]} 29. Kg4 {[%clk
0:02:47.8]} 29... Rxh4+ {[%clk 0:04:14.3]} 30. Kg3 {[%clk 0:02:45.8]} 30... a5
{[%clk 0:04:12.6]} 31. Rf1 {[%clk 0:02:39]} 31... e5 {[%clk 0:04:10.5]} 32. Rbd1
{[%clk 0:02:34.1]} 32... Nb6 {[%clk 0:04:08.2]} 33. b3 {[%clk 0:02:28.7]} 33...
Rxc3 {[%clk 0:04:05.8]} 34. Rf2 {[%clk 0:02:17]} 34... d4 {[%clk 0:04:04.7]} 35.
Re2 {[%clk 0:02:13.1]} 35... Nd5 {[%clk 0:04:03.6]} 36. Re4 {[%clk 0:02:10.4]}
36... Rxe4 {[%clk 0:03:59.7]} 37. Rh1 {[%clk 0:02:00.1]} 37... Rh4 {[%clk
0:03:54.6]} 38. Rxh4 {[%clk 0:01:57.1]} 38... gxh4+ {[%clk 0:03:53.5]} 39. Kxh4
{[%clk 0:01:57]} 39... Rc2 {[%clk 0:03:52.3]} 40. a4 {[%clk 0:01:54.3]} 40...
Rxg2 {[%clk 0:03:49.1]} 41. axb5 {[%clk 0:01:52.9]} 41... Kf5 {[%clk 0:03:43.2]}
42. Kh3 {[%clk 0:01:51.1]} 42... Nf4+ {[%clk 0:03:38.4]} 43. Kh4 {[%clk
0:01:47.2]} 43... e4 {[%clk 0:03:37.9]} 44. fxe4+ {[%clk 0:01:45.5]} 44... Kxe4
{[%clk 0:03:37]} 45. b6 {[%clk 0:01:44.1]} 45... Kf5 {[%clk 0:03:36.1]} 46. b7
{[%clk 0:01:42.9]} 46... Rg4# {[%clk 0:03:35.6]} 0-1

[Event "Live Chess"]
[Site "Chess.com"]
[Date "2023.05.21"]
[Round "-"]
[White "f4nomore"]
[Black "yeetpizza74"]
[Result "1-0"]
[WhiteElo "1386"]
[BlackElo "502"]
[TimeControl "300"]
[EndTime "4:21:22 PDT"]
[Termination "f4nomore won by checkmate"]

1. d4 {[%clk 0:04:54.7]} 1... e5 {[%clk 0:04:58.4]} 2. dxe5 {[%clk 0:04:53]}
2... Nc6 {[%clk 0:04:57]} 3. f4 {[%clk 0:04:50.8]} 3... f6 {[%clk 0:04:53.4]} 4.
exf6 {[%clk 0:04:47.1]} 4... Nxf6 {[%clk 0:04:51.8]} 5. Nf3 {[%clk 0:04:45.4]}
5... d5 {[%clk 0:04:49.9]} 6. e3 {[%clk 0:04:44.3]} 6... Bg4 {[%clk 0:04:45.5]}
7. Be2 {[%clk 0:04:43.1]} 7... Bxf3 {[%clk 0:04:43.3]} 8. Bxf3 {[%clk
0:04:41.4]} 8... Bb4+ {[%clk 0:04:36]} 9. c3 {[%clk 0:04:39.5]} 9... Ba5 {[%clk
0:04:34.9]} 10. O-O {[%clk 0:04:37.7]} 10... O-O {[%clk 0:04:30.3]} 11. b4
{[%clk 0:04:36.1]} 11... Bb6 {[%clk 0:04:28.7]} 12. a4 {[%clk 0:04:32.8]} 12...
a5 {[%clk 0:04:25.8]} 13. b5 {[%clk 0:04:18.6]} 13... Ne7 {[%clk 0:04:20.8]} 14.
Qe2 {[%clk 0:04:14.7]} 14... Nc6 {[%clk 0:03:59.3]} 15. Na3 {[%clk 0:04:10.8]}
15... Ne7 {[%clk 0:03:52.4]} 16. Nc2 {[%clk 0:04:07.1]} 16... Ne4 {[%clk
0:03:40.7]} 17. Bxe4 {[%clk 0:04:00.9]} 17... dxe4 {[%clk 0:03:39.2]} 18. Nd4
{[%clk 0:03:56.1]} 18... Nf5 {[%clk 0:03:35.4]} 19. Ne6 {[%clk 0:03:49.5]} 19...
Qe7 {[%clk 0:03:16.7]} 20. Nxf8 {[%clk 0:03:44.2]} 20... Rxf8 {[%clk 0:03:15]}
21. Ba3 {[%clk 0:03:39.6]} 21... Qh4 {[%clk 0:03:09.5]} 22. Bxf8 {[%clk
0:03:30.4]} 22... Kxf8 {[%clk 0:03:06.5]} 23. Qe1 {[%clk 0:03:03.1]} 23... Qg4
{[%clk 0:02:57.5]} 24. Qd1 {[%clk 0:02:46.7]} 24... Bxe3+ {[%clk 0:02:54.2]} 25.
Kh1 {[%clk 0:02:43.3]} 25... Bxf4 {[%clk 0:02:31.2]} 26. Qxg4 {[%clk 0:02:40]}
26... Ne3 {[%clk 0:02:22.9]} 27. Qxf4+ {[%clk 0:02:36.1]} 27... Ke7 {[%clk
0:02:18.2]} 28. Qxe3 {[%clk 0:02:34.8]} 28... c6 {[%clk 0:02:15.5]} 29. Qxe4+
{[%clk 0:02:33.6]} 29... Kd6 {[%clk 0:02:13.9]} 30. Rad1+ {[%clk 0:02:30.8]}
30... Kc5 {[%clk 0:02:12.9]} 31. Qd4# {[%clk 0:02:28.2]} 1-0

[Event "Live Chess"]
[Site "Chess.com"]
[Date "2023.05.21"]
[Round "-"]
[White "bedsdrout"]
[Black "Mugzwang"]
[Result "0-1"]
[WhiteElo "570"]
[BlackElo "1532"]
[TimeControl "300"]
[EndTime "4:21:31 PDT"]
[Termination "Mugzwang won by checkmate"]

1. e4 {[%clk 0:04:51]} 1... c5 {[%clk 0:04:57]} 2. Qh5 {[%clk 0:04:44.3]} 2...
d6 {[%clk 0:04:45.7]} 3. Bc4 {[%clk 0:04:39.7]} 3... e6 {[%clk 0:04:39.4]} 4. d4
{[%clk 0:04:32.1]} 4... cxd4 {[%clk 0:04:31.1]} 5. Nf3 {[%clk 0:04:14.5]} 5...
Nc6 {[%clk 0:04:25.4]} 6. Nh4 {[%clk 0:04:11.2]} 6... Nf6 {[%clk 0:04:22.7]} 7.
Qf3 {[%clk 0:04:04.4]} 7... Be7 {[%clk 0:04:17.9]} 8. Nf5 {[%clk 0:03:57.2]}
8... exf5 {[%clk 0:04:14.3]} 9. e5 {[%clk 0:03:52]} 9... dxe5 {[%clk 0:04:10.7]}
10. Bg5 {[%clk 0:03:45.7]} 10... O-O {[%clk 0:04:08.9]} 11. Qg3 {[%clk
0:03:33.7]} 11... Ne4 {[%clk 0:03:55.5]} 12. Qf3 {[%clk 0:03:10.2]} 12... Nxg5
{[%clk 0:03:52.8]} 13. Qh5 {[%clk 0:03:01.8]} 13... Be6 {[%clk 0:03:46.2]} 14.
Bd3 {[%clk 0:02:57.8]} 14... e4 {[%clk 0:03:44.2]} 15. Be2 {[%clk 0:02:54]}
15... Nb4 {[%clk 0:03:41.1]} 16. Bd1 {[%clk 0:02:39.7]} 16... d3 {[%clk
0:03:34]} 17. cxd3 {[%clk 0:02:33.4]} 17... Nxd3+ {[%clk 0:03:32.7]} 18. Kf1
{[%clk 0:02:23.1]} 18... Qd4 {[%clk 0:03:32.1]} 19. Qh4 {[%clk 0:02:01.9]} 19...
Qxb2 {[%clk 0:03:26]} 20. f3 {[%clk 0:01:39.8]} 20... Qxa1 {[%clk 0:03:18.7]}
21. fxe4 {[%clk 0:01:36.9]} 21... Qxb1 {[%clk 0:03:16.7]} 22. Ke2 {[%clk
0:01:28]} 22... fxe4 {[%clk 0:03:06.1]} 23. Ke3 {[%clk 0:01:19.4]} 23... Bc5+
{[%clk 0:03:00.7]} 24. Ke2 {[%clk 0:00:50.9]} 24... Qb2+ {[%clk 0:02:59.5]} 25.
Kf1 {[%clk 0:00:45.9]} 25... Bc4 {[%clk 0:02:42.1]} 26. Be2 {[%clk 0:00:32.2]}
26... Qc1+ {[%clk 0:02:33]} 27. Bd1 {[%clk 0:00:26.7]} 27... Qxd1+ {[%clk
0:02:31.9]} 28. Qe1 {[%clk 0:00:22.8]} 28... Qxe1# {[%clk 0:02:31.1]} 0-1

[Event "Live Chess"]
[Site "Chess.com"]
[Date "2023.05.21"]
[Round "-"]
[White "Abde2012"]
[Black "Tiltador"]
[Result "1-0"]
[WhiteElo "752"]
[BlackElo "808"]
[TimeControl "300"]
[EndTime "4:21:35 PDT"]
[Termination "Abde2012 won by checkmate"]

1. d4 {[%clk 0:04:54.7]} 1... d5 {[%clk 0:04:58.5]} 2. c4 {[%clk 0:04:53.8]}
2... dxc4 {[%clk 0:04:56.9]} 3. e3 {[%clk 0:04:52.3]} 3... b5 {[%clk 0:04:55.5]}
4. Nc3 {[%clk 0:04:49.4]} 4... c6 {[%clk 0:04:53.1]} 5. a4 {[%clk 0:04:46.7]}
5... a6 {[%clk 0:04:51.8]} 6. axb5 {[%clk 0:04:45.2]} 6... cxb5 {[%clk
0:04:49.3]} 7. Qf3 {[%clk 0:04:39.9]} 7... Nc6 {[%clk 0:04:45.9]} 8. Qxc6+
{[%clk 0:04:36.1]} 8... Bd7 {[%clk 0:04:43.5]} 9. Qb7 {[%clk 0:04:31.3]} 9... e6
{[%clk 0:04:34.1]} 10. Rxa6 {[%clk 0:04:25.3]} 10... Rxa6 {[%clk 0:04:27.1]} 11.
Qxa6 {[%clk 0:04:24.3]} 11... Bb4 {[%clk 0:04:25.1]} 12. Bd2 {[%clk 0:04:21.3]}
12... Bxc3 {[%clk 0:04:23.2]} 13. Bxc3 {[%clk 0:04:19.9]} 13... Nf6 {[%clk
0:04:22.3]} 14. Nf3 {[%clk 0:04:16.5]} 14... O-O {[%clk 0:04:21]} 15. Ne5 {[%clk
0:04:15.6]} 15... Nd5 {[%clk 0:04:14.3]} 16. Nxd7 {[%clk 0:04:12.1]} 16... Qxd7
{[%clk 0:04:12.4]} 17. g3 {[%clk 0:04:02.9]} 17... b4 {[%clk 0:04:01.3]} 18. Bd2
{[%clk 0:03:57.3]} 18... c3 {[%clk 0:03:55.5]} 19. bxc3 {[%clk 0:03:55.7]} 19...
bxc3 {[%clk 0:03:54]} 20. Bc1 {[%clk 0:03:54.8]} 20... Qc8 {[%clk 0:03:17]} 21.
Qd3 {[%clk 0:03:50.8]} 21... Qa8 {[%clk 0:03:05.1]} 22. Qe4 {[%clk 0:03:49.8]}
22... Qa1 {[%clk 0:02:57.3]} 23. Kd1 {[%clk 0:03:48.2]} 23... Qa4+ {[%clk
0:02:53.5]} 24. Ke1 {[%clk 0:03:45.2]} 24... c2 {[%clk 0:02:46.3]} 25. Bd3
{[%clk 0:03:43.4]} 25... Qa1 {[%clk 0:02:29.5]} 26. Qxh7# {[%clk 0:03:40.2]} 1-0